bitfinex-derivatives/quotes_ETHF0:USTF0_20241105
["timestamp","ask_amount","ask_price","bid_price","bid_amount"]
[1730809698583,0.41033,2437.9,2437.8,0.41034]
[1730809698780,0.87883,2437.9,2437.8,0.63821202]
[1730809698981,0.4685,2437.9,2437.8,0.63821202]
[1730809699187,0.87883,2437.9,2437.8,0.63821202]
[1730809700782,0.4685,2437.9,2437.8,0.63821202]
[1730809701286,0.87883,2437.9,2437.8,0.63821202]
[1730809701486,0.87883,2437.9,2437.8,0.63829713]
[1730809701682,0.4685,2437.9,2437.8,0.63829713]
[1730809702277,0.87883,2437.9,2437.8,0.63829713]
[1730809702791,0.9002,2438.0,2437.9,0.41033]
[1730809702981,0.4621,2438.0,2437.9,0.41033]
[1730809703186,0.4621,2438.0,2437.9,0.6382991]
[1730809703187,0.87241,2438.0,2437.9,0.6382991]
[1730809704084,0.4621,2438.0,2437.9,0.6382991]
[1730809704284,1.296,2438.1,2437.9,0.6796691]
[1730809704487,0.8857,2438.1,2438.0,0.41031]
[1730809704988,44.0078,2438.2,2438.1,0.41029]
[1730809705204,3.2078,2438.2,2438.1,0.41029]
[1730809705492,3.2078,2438.2,2438.1,0.63828425]
[1730809705888,42.11806,2438.4,2438.3,0.41026]
[1730809706089,41.7078,2438.4,2437.9,1.47751]
[1730809706295,0.41029,2438.2,2438.1,0.41029]
[1730809706498,0.41029,2438.2,2438.1,0.6382614]
[1730809707291,0.41028,2438.2,2438.1,0.2279714]
[1730809707796,1.18228976,2438.3,2437.9,0.4678]
[1730809707992,0.4103,2438.1,2438.0,0.63830125]
[1730809708197,0.4103,2438.1,2438.0,0.22800125]
[1730809708598,2.20794976,2438.3,2437.9,0.87811]
[1730809708800,1.3078,2438.0,2437.9,0.87813]
[1730809709093,1.3078,2438.0,2437.9,1.10613417]
[1730809709408,1.71811,2438.0,2437.9,1.10613417]
[1730809709598,1.3078,2438.0,2437.9,1.10613417]
[1730809710296,1.71811,2438.0,2437.9,1.10613417]
[1730809712697,1.3078,2438.0,2437.9,1.10613417]
[1730809713202,1.3078,2438.0,2437.9,1.10612023]
[1730809713501,1.71811,2438.0,2437.9,1.10612023]
[1730809713691,0.41031,2438.0,2437.9,1.10612023]
[1730809714694,0.43,2438.2,2437.9,0.69579023]
[1730809714903,0.84029,2438.2,2438.1,0.41029]
[1730809715711,0.43,2438.2,2438.1,0.41029]
[1730809715912,0.84028,2438.2,2438.1,0.41029]
[1730809716105,0.43,2438.2,2438.1,0.41029]
[1730809716310,0.84028,2438.2,2438.1,0.41029]
[1730809716711,0.43,2438.2,2438.1,0.41029]
[1730809716912,0.4629,2438.3,2438.2,0.41028]
[1730809717111,44.41805,2438.4,2438.0,1.47446]
[1730809717112,44.0078,2438.4,2438.0,1.47446]
[1730809717313,44.0078,2438.4,2438.3,0.41026]
[1730809717515,44.41804,2438.4,2438.3,0.41026]
[1730809718315,44.0078,2438.4,2438.3,0.41026]
[1730809718511,40.8,2438.4,2438.3,0.41026]
[1730809718708,40.8,2438.4,2438.3,0.63830916]
[1730809719017,0.41024,2438.4,2438.3,0.63830916]
[1730809719410,41.6952,2438.5,2438.4,0.41024]
[1730809719811,41.6952,2438.5,2438.2,0.4547]
[1730809720017,0.41024,2438.4,2438.3,0.63830738]
[1730809720708,42.10544,2438.5,2438.4,0.41024]
[1730809722316,0.41025,2438.4,2438.3,0.41024]
[1730809722512,0.41025,2438.4,2438.3,0.63822095]
[1730809723008,41.6952,2438.5,2438.4,0.41024]
[1730809723009,42.10544,2438.5,2438.4,0.41024]
[1730809723517,41.6952,2438.5,2438.4,0.41024]
[1730809723716,42.10543,2438.5,2438.4,0.41024]
[1730809724116,41.6952,2438.5,2438.2,0.4547]
[1730809724420,0.41025,2438.4,2438.3,0.63816536]
[1730809725209,0.41025,2438.4,2438.3,0.41024]
[1730809725415,42.10544,2438.5,2438.4,0.41024]
[1730809725621,40.8,2438.5,2438.4,0.41024]
[1730809725810,0.86011,2438.6,2438.2,1.4804]
[1730809725811,0.4499,2438.6,2438.5,0.41023]
[1730809726017,0.8663,2438.7,2438.3,1.02563]
[1730809726313,41.21022,2438.6,2438.5,0.41022]
[1730809726512,0.41022,2438.6,2438.5,0.41022]
[1730809726719,0.41022,2438.6,2438.5,0.84262]
[1730809727217,0.41022,2438.6,2438.5,0.4324]
[1730809729215,0.41022,2438.6,2438.5,0.84263]
[1730809729727,42.84837895,2438.7,2438.5,0.4324]
[1730809730026,0.41021,2438.6,2438.5,0.84261]
[1730809730418,0.41021,2438.6,2438.5,0.4324]
[1730809730618,0.41021,2438.6,2438.5,0.84263]
[1730809731021,0.41021,2438.6,2438.5,0.4324]
[1730809731423,0.41024,2438.5,2438.4,0.41024]
[1730809732420,40.8,2438.6,2438.5,0.41023]
[1730809732421,41.21021,2438.6,2438.5,0.41023]
[1730809732622,0.41021,2438.6,2438.5,0.41023]
[1730809732824,0.41023,2438.5,2438.4,0.41023]
[1730809733428,0.41022,2438.6,2438.5,0.41022]
[1730809734327,0.41023,2438.5,2438.4,0.41023]
[1730809734825,41.2561,2438.7,2438.3,3.6443]
[1730809735032,0.41022,2438.6,2438.5,0.41023]
[1730809735730,0.41022,2438.6,2438.3,3.6443]
[1730809735928,0.41022,2438.6,2438.5,0.41023]
[1730809737931,41.6663,2438.7,2438.6,0.41021]
[1730809738531,41.66631,2438.7,2438.6,0.41021]
[1730809738924,0.41021,2438.6,2438.5,0.41021]
[1730809741436,41.2561,2438.7,2438.3,5.85202895]
[1730809741633,41.66629,2438.7,2438.6,0.41021]
[1730809742730,0.41022,2438.6,2438.5,0.41022]
[1730809744229,41.66631,2438.7,2438.6,0.41021]
[1730809744636,41.21021,2438.7,2438.6,0.41021]
[1730809745840,2.45725895,2438.8,2438.7,0.41019]
[1730809746037,2.45725895,2438.8,2438.4,1.0256]
[1730809746038,2.04706895,2438.8,2438.4,1.0256]
[1730809746233,0.4102,2438.7,2438.6,0.4102]
[1730809753849,42.84706895,2438.8,2438.4,1.02561]
[1730809754042,0.4228,2438.6,2438.5,0.41023]
[1730809757252,0.4228,2438.6,2438.5,0.63818952]
[1730809758646,0.4228,2438.6,2438.5,0.41023]
[1730809758951,0.4228,2438.6,2438.5,0.63822957]
[1730809760447,0.83301,2438.6,2438.5,0.63822957]
[1730809761148,0.4228,2438.6,2438.5,0.63822957]
[1730809761353,0.83301,2438.6,2438.5,0.63822957]
[1730809762246,0.83301,2438.6,2438.5,0.41023]
[1730809762454,0.83301,2438.6,2438.5,0.63840279]
[1730809762654,0.83301,2438.6,2438.5,0.41023]
[1730809763159,0.83301,2438.6,2438.5,0.63839981]
[1730809763757,0.4228,2438.6,2438.5,0.86661099]
[1730809764358,0.4228,2438.6,2438.5,0.63839981]
[1730809764560,0.4228,2438.6,2438.5,1.19877526]
[1730809765360,0.83301,2438.6,2438.5,1.19877526]
[1730809765859,0.83301,2438.6,2438.5,0.63839981]
[1730809766160,0.83301,2438.6,2438.5,1.20038018]
[1730809767363,6.11587895,2438.6,2438.5,0.79015018]
[1730809767558,9.32431799,2438.6,2438.5,0.22975415]
[1730809767961,6.11587895,2438.6,2438.5,0.22975415]
[1730809768766,0.41026,2438.4,2438.1,0.4601]
[1730809769059,1.3201,2438.3,2438.2,1.29975293]
[1730809769264,1.73036,2438.3,2438.2,0.79027582]
[1730809770060,1.73036,2438.3,2438.2,1.29975653]
[1730809770258,1.73036,2438.3,2438.2,0.79027582]
[1730809770463,1.73036,2438.3,2438.2,1.29974024]
[1730809770760,1.73036,2438.3,2438.2,0.79027582]
[1730809771861,1.73036,2438.3,2438.2,0.79027469]
[1730809776063,1.73036,2438.3,2438.2,0.79022722]
[1730809776257,1.73036,2438.3,2438.2,0.56050261]
[1730809776459,1.73036,2438.3,2438.2,0.79024322]
[1730809777865,1.73036,2438.3,2438.2,0.79002913]
[1730809779765,1.73036,2438.3,2438.2,0.22974061]
[1730809780072,1.73036,2438.3,2438.2,0.78996617]
[1730809783371,1.73036,2438.3,2438.2,0.22974061]
[1730809783584,1.73036,2438.3,2438.2,0.97041336]
[1730809783873,0.41026,2438.3,2438.2,1.20006264]
[1730809784068,0.41026,2438.3,2438.2,0.78978264]
[1730809785276,0.41026,2438.3,2438.2,0.22964928]
[1730809787075,0.41026,2438.3,2438.2,0.63992928]
[1730809787275,0.41026,2438.3,2438.2,0.6399383]
[1730809787671,0.41026,2438.3,2438.2,0.41028]
[1730809787975,0.41026,2438.3,2438.2,0.63993181]
[1730809789372,0.41026,2438.3,2438.2,0.63992915]
[1730809794892,0.41026,2438.3,2438.2,0.41028]
[1730809795288,0.41026,2438.3,2438.2,0.63993108]
[1730809795988,0.41026,2438.4,2438.3,0.41024]
[1730809796285,0.41026,2438.4,2438.3,1.19998398]
[1730809796591,0.41026,2438.4,2438.3,4.40778294]
[1730809796792,0.41026,2438.4,2438.3,4.83998294]
[1730809797689,0.41026,2438.4,2438.3,4.27991108]
[1730809797883,0.41026,2438.4,2438.3,4.84002968]
[1730809798480,0.41026,2438.4,2438.3,4.05026]
[1730809798686,0.41026,2438.4,2438.3,4.27989131]
[1730809798885,0.41026,2438.4,2438.3,4.05026]
[1730809799395,0.41026,2438.4,2438.3,1.63224923]
[1730809799895,0.41026,2438.4,2438.3,1.63224861]
[1730809800592,0.41026,2438.4,2438.3,1.57268169]
[1730809801392,1.3332,2438.5,2438.3,1.16242169]
[1730809801593,1.74343,2438.5,2438.4,0.63986967]
[1730809802389,1.74343,2438.5,2438.4,0.22962967]
[1730809802892,1.74343,2438.5,2438.4,0.63986967]
[1730809803199,1.74343,2438.5,2438.4,0.22962967]
[1730809803595,1.74343,2438.5,2438.4,0.63986967]
[1730809804896,1.74343,2438.5,2438.4,0.41024]
[1730809805100,1.74343,2438.5,2438.4,0.63995552]
[1730809806000,1.74343,2438.5,2438.4,0.7900314]
[1730809806202,1.74343,2438.5,2438.4,1.2002714]
[1730809806790,1.74343,2438.5,2438.4,0.7900314]
[1730809807194,1.74343,2438.5,2438.4,0.63995552]
[1730809807401,1.74343,2438.5,2438.4,1.20034147]
[1730809808801,1.74343,2438.5,2438.4,0.83394]
[1730809809106,1.74343,2438.5,2438.4,1.21387255]
[1730809809294,3.22804683,2438.7,2438.4,2.3959415]
[1730809809499,4.55814683,2438.9,2438.6,1.18206895]
[1730809809802,0.41018,2438.8,2438.7,0.22973059]
[1730809810109,0.41021,2438.6,2438.5,0.56037244]
[1730809810312,0.41021,2438.6,2438.1,4.132]
[1730809810313,4.1008,2438.6,2438.1,4.132]
[1730809810505,4.1008,2438.6,2437.9,0.4237]
[1730809810506,0.41031,2438.0,2437.9,0.4237]
[1730809810802,3.22695853,2438.2,2437.9,1.83554913]
[1730809811004,0.41028,2438.3,2438.1,1.59235895]
[1730809811191,0.85806,2438.3,2438.2,0.22978018]
[1730809811799,0.85806,2438.3,2438.2,0.64006018]
[1730809812102,0.85806,2438.3,2438.2,0.41028]
[1730809812305,0.85806,2438.3,2438.0,1.18206895]
[1730809812500,0.85806,2438.3,2438.2,0.41028]
[1730809812695,0.85806,2438.3,2438.1,0.41028]
[1730809812900,0.85806,2438.3,2438.2,0.22979308]
[1730809813502,1.29246,2438.3,2438.2,0.64007308]
[1730809814203,1.29246,2438.3,2438.2,0.22979308]
[1730809815106,5.39406,2438.3,2438.2,0.22979308]
[1730809815702,8.62101853,2438.3,2438.2,0.22979308]
[1730809817215,4.51941853,2438.3,2438.2,0.22979308]
[1730809818208,9.80308748,2438.3,2438.2,0.22979308]
[1730809818403,1.02573,2438.2,2437.7,4.38986895]
[1730809818608,1.02573,2438.2,2437.8,2.03925658]
[1730809818609,0.41033,2438.0,2437.8,2.03925658]
[1730809818814,0.41033,2438.0,2437.9,0.22976061]
[1730809819209,41.21033,2438.0,2437.9,0.22976061]
[1730809819518,0.41033,2438.0,2437.9,0.22976061]
[1730809819715,4.51193,2438.0,2437.9,0.22976061]
[1730809820010,4.51193,2438.0,2437.9,0.22969924]
[1730809820011,45.31191,2438.0,2437.9,0.22969924]
[1730809822316,0.41034,2437.8,2437.7,5.23571895]
[1730809822612,0.41034,2437.8,2437.7,6.02111118]
[1730809822813,0.41034,2437.8,2437.7,2.81331118]
[1730809823011,0.85424,2437.9,2437.8,0.41034]
[1730809823215,0.85424,2437.9,2437.8,0.22957411]
[1730809824513,1.31894,2437.9,2437.8,0.22957411]
[1730809825816,1.31894,2437.9,2437.7,3.2078]
[1730809825817,0.41034,2437.8,2437.7,3.2078]
[1730809826017,0.84974,2437.8,2437.7,3.4372928]
[1730809826517,6.13420895,2437.8,2437.7,0.2294928]
[1730809826810,0.41043,2437.3,2437.2,3.2078]
[1730809827018,0.41046,2437.1,2437.0,0.8868]
[1730809827212,0.41046,2437.1,2437.0,0.4448]
[1730809828114,0.41048,2437.0,2436.9,3.2078]
[1730809829120,4.51368,2437.0,2436.9,3.2078]
[1730809830023,4.93768,2437.0,2436.9,3.2078]
[1730809832026,0.83448,2437.0,2436.9,3.2078]
[1730809832620,0.41048,2437.0,2436.9,3.2078]
[1730809832926,0.41047,2437.1,2436.9,3.61828]
[1730809833122,1.27846,2437.2,2437.0,0.41048]
[1730809833928,3.6573,2437.3,2437.1,1.18206895]
[1730809833929,3.2078,2437.3,2437.1,1.18206895]
[1730809834115,0.4614,2437.5,2437.2,0.41044]
[1730809834317,0.4614,2437.5,2437.0,0.463]
[1730809834517,0.41045,2437.2,2437.1,0.41046]
[1730809834718,0.41045,2437.2,2437.0,1.64506895]
[1730809834719,0.41046,2437.2,2437.0,0.87347]
[1730809834932,0.41046,2437.2,2437.1,0.41046]
[1730809835125,1.59250895,2437.3,2437.1,0.41046]
[1730809835328,1.59250895,2437.3,2437.0,0.463]
[1730809835329,1.59250895,2437.3,2437.2,0.41045]
[1730809835523,1.59250895,2437.3,2437.0,1.64506895]
[1730809835524,0.41044,2437.3,2437.0,1.64506895]
[1730809835717,0.41044,2437.3,2437.1,0.41045]
[1730809836425,1.18206895,2437.4,2437.0,0.87347]
[1730809836426,0.41046,2437.2,2437.0,0.87347]
[1730809836722,0.41046,2437.1,2437.0,0.463]
[1730809836931,0.41046,2437.1,2437.0,0.87348]
[1730809837317,0.41046,2437.1,2437.0,0.463]
[1730809837821,2.20810895,2437.4,2437.0,0.463]
[1730809838027,0.41045,2437.2,2437.1,0.41045]
[1730809838325,0.41043,2437.3,2437.2,0.41045]
[1730809839123,1.18206895,2437.4,2437.0,0.463]
[1730809839321,0.41044,2437.3,2437.2,0.41044]
[1730809839516,0.41045,2437.2,2437.1,0.41045]
[1730809839829,1.18206895,2437.4,2437.0,0.463]
[1730809840029,0.4614,2437.5,2437.0,1.64506895]
[1730809840228,0.41045,2437.2,2437.1,0.41045]
[1730809840426,0.41042,2437.4,2437.3,0.41042]
[1730809841130,0.8718,2437.5,2437.4,0.41041]
[1730809841425,4.85016895,2437.6,2437.2,1.02612]
[1730809841426,4.80025895,2437.6,2437.2,1.02612]
[1730809841626,4.80025895,2437.6,2437.5,0.41039]
[1730809841832,0.4104,2437.5,2437.4,0.4104]
[1730809842222,4.80025895,2437.6,2437.5,0.41039]
[1730809842830,0.4104,2437.5,2437.4,0.4104]
[1730809843825,0.4104,2437.5,2437.3,0.4289]
[1730809843826,4.38986895,2437.6,2437.3,0.4289]
[1730809844029,3.2078,2437.6,2437.5,0.41039]
[1730809844224,3.61818,2437.6,2437.5,0.41039]
[1730809844424,0.41038,2437.6,2437.5,0.87579]
[1730809844732,1.61046895,2437.8,2437.5,0.4654]
[1730809844937,0.41035,2437.8,2437.7,0.41036]
[1730809845229,4.0988,2437.9,2437.5,1.64746895]
[1730809845434,0.41037,2437.7,2437.6,0.41037]
[1730809845630,5.28086895,2437.9,2437.5,1.64746895]
[1730809845834,0.41035,2437.8,2437.7,0.41035]
[1730809846525,5.28086895,2437.9,2437.5,1.64746895]
[1730809846721,5.69120895,2437.9,2437.8,0.41034]
[1730809847731,40.8,2438.1,2438.0,0.41031]
[1730809847935,0.85227,2438.3,2437.9,0.4302]
[1730809848239,0.85227,2438.3,2438.0,1.63216895]
[1730809848240,0.85226,2438.3,2438.0,1.63216895]
[1730809848440,40.8,2438.2,2438.1,0.41029]
[1730809849028,40.8,2438.2,2438.0,2.04246895]
[1730809849229,0.41029,2438.1,2438.0,0.4501]
[1730809849638,0.41029,2438.1,2438.0,0.8604]
[1730809849829,40.8,2438.2,2438.1,0.41029]
[1730809849830,41.21028,2438.2,2438.1,0.41029]
[1730809850034,40.8,2438.2,2438.1,0.41029]
[1730809851233,0.442,2438.3,2438.0,1.63216895]
[1730809851433,1.18206895,2438.4,2438.0,1.63216895]
[1730809851634,1.18206895,2438.4,2438.3,0.41026]
[1730809851832,1.18206895,2438.4,2438.2,0.41027]
[1730809851833,42.39230895,2438.4,2438.2,0.41027]
[1730809852133,42.39230895,2438.4,2438.2,0.41026]
[1730809852337,42.39230895,2438.4,2438.3,0.4301]
[1730809852732,42.39230895,2438.4,2438.3,0.84036]
[1730809853339,0.8885,2438.5,2438.4,0.41024]
[1730809853638,1.18206895,2438.8,2438.6,0.41021]
[1730809853639,0.4672,2438.7,2438.6,0.41021]
[1730809853833,41.67739,2438.7,2438.6,0.41021]
[1730809854132,40.8,2438.7,2438.6,0.41021]
[1730809854437,40.8,2438.7,2438.5,0.86752]
[1730809854834,41.21021,2438.7,2438.5,0.86752]
[1730809855233,40.8,2438.7,2438.6,0.41021]
[1730809855934,40.8,2438.7,2438.5,0.4573]
[1730809856234,0.41021,2438.6,2438.5,0.86752]
[1730809856433,40.8,2438.7,2438.5,0.86752]
[1730809856434,0.41021,2438.7,2438.5,0.86752]
[1730809856927,0.41021,2438.7,2438.5,0.4573]
[1730809857636,0.41023,2438.5,2438.4,3.2078]
[1730809858833,2.20756895,2438.7,2438.3,0.4301]
[1730809859234,0.41024,2438.4,2438.3,0.4301]
[1730809859539,0.41029,2438.2,2438.0,0.8458]
[1730809859741,0.41029,2438.2,2438.0,1.70711]
[1730809860337,0.41029,2438.1,2438.0,1.2968]
[1730809860733,0.41029,2438.1,2438.0,5.80871]
[1730809860941,0.41029,2438.1,2438.0,5.3984]
[1730809861735,0.41029,2438.1,2438.0,5.80871]
[1730809862039,0.41029,2438.1,2438.0,5.3984]
[1730809862235,0.41029,2438.1,2438.0,1.2968]
[1730809862436,0.41029,2438.1,2438.0,0.8738]
[1730809863242,0.41037,2437.7,2437.6,0.41037]
[1730809863444,0.41038,2437.7,2437.6,0.41037]
[1730809863745,0.41037,2437.7,2437.6,0.41037]
[1730809863939,41.21037,2437.7,2437.6,0.41037]
[1730809864141,0.41037,2437.7,2437.6,0.41037]
[1730809864744,43.44994895,2438.0,2437.5,4.81426895]
[1730809864951,0.41038,2437.6,2437.5,4.81426895]
[1730809865153,0.41038,2437.6,2437.5,1.60646895]
[1730809865351,0.41038,2437.6,2437.5,0.4244]
[1730809865747,0.41038,2437.6,2437.1,0.86225]
[1730809865748,1.02601,2437.5,2437.1,0.86225]
[1730809865948,0.41045,2437.2,2437.1,0.83485]
[1730809866145,0.41045,2437.2,2437.1,0.4244]
[1730809866346,2.20811895,2437.4,2436.9,4.80034895]
[1730809866550,0.41048,2437.0,2436.9,5.25794895]
[1730809867056,0.41048,2437.0,2436.9,9.36114895]
[1730809867248,0.41048,2437.0,2436.9,8.95066895]
[1730809867562,0.41048,2437.0,2436.9,8.1791]
[1730809868555,0.4251,2437.1,2436.9,7.7686]
[1730809868742,0.4421,2437.5,2436.9,7.7686]
[1730809868950,0.41043,2437.3,2437.2,0.41043]
[1730809869749,0.41042,2437.4,2437.0,2.56261395]
[1730809869944,0.41044,2437.3,2437.2,0.41043]
[1730809870552,0.41046,2437.2,2437.1,0.41045]
[1730809871656,1.4681,2437.5,2436.9,3.6654]
[1730809871853,0.41048,2437.1,2437.0,0.41047]
[1730809872959,0.41046,2437.2,2437.1,0.41044]
[1730809873854,0.41044,2437.3,2437.2,0.41043]
[1730809876058,0.41046,2437.2,2437.1,0.41045]
[1730809877064,0.41048,2437.1,2437.0,0.41047]
[1730809877257,0.41048,2437.0,2436.9,4.07589]
[1730809877459,0.84128,2437.0,2436.9,4.07589]
[1730809877660,0.84128,2437.0,2436.9,8.17909]
[1730809878469,0.4308,2437.0,2436.9,8.17909]
[1730809879365,0.41042,2437.4,2437.3,0.41043]
[1730809879665,0.9205,2437.5,2437.4,0.41041]
[1730809879863,0.9205,2437.5,2437.4,3.61821]
[1730809880066,0.41037,2437.7,2437.4,3.6698]
[1730809880260,0.9205,2437.8,2437.7,0.41036]
[1730809880863,3.2078,2438.4,2437.7,3.2078]
[1730809881082,0.4103,2438.1,2437.8,0.462]
[1730809881372,0.4103,2438.1,2438.0,0.41031]
[1730809881974,0.9205,2438.2,2438.1,0.41029]
[1730809882164,0.9205,2438.2,2438.0,0.4103]
[1730809882366,1.33079,2438.2,2438.0,0.4103]
[1730809882670,0.41029,2438.1,2438.0,0.4103]
[1730809882966,0.9205,2438.2,2438.0,0.4103]
[1730809883174,0.9205,2438.2,2438.1,0.41029]
[1730809884272,0.4535,2438.2,2438.1,0.41029]
[1730809886578,0.4103,2438.1,2438.0,0.4103]
[1730809886786,0.4535,2438.2,2438.0,0.4103]
[1730809886787,0.86379,2438.2,2438.0,0.4103]
[1730809887173,0.4535,2438.2,2438.1,0.41029]
[1730809887678,0.86378,2438.2,2438.1,0.41029]
[1730809888076,0.4535,2438.2,2438.1,0.41029]
[1730809888968,0.4615,2438.3,2437.9,1.02582]
[1730809889181,0.4597,2438.5,2438.4,0.41024]
[1730809889575,0.86993,2438.5,2438.4,0.41024]
[1730809889776,0.4597,2438.5,2438.4,0.41024]
[1730809889981,3.61796,2438.9,2438.5,0.41023]
[1730809890175,4.1034,2438.9,2438.4,3.2078]
[1730809890376,0.41018,2438.8,2438.7,0.41018]
[1730809890581,4.51357,2438.9,2438.7,0.41018]
[1730809890976,4.1034,2438.9,2438.4,4.23341]
[1730809891181,0.8956,2438.9,2438.8,0.41018]
[1730809891384,1.30576,2438.9,2438.8,0.41018]
[1730809892087,1.30576,2438.9,2438.7,3.61799]
[1730809892088,0.41018,2438.8,2438.7,3.61799]
[1730809892280,0.41018,2438.8,2438.7,3.2078]
[1730809893287,0.41022,2438.6,2438.4,0.41023]
[1730809893790,0.4689,2438.5,2438.4,0.41024]
[1730809895276,0.87913,2438.5,2438.4,0.41024]
[1730809895478,0.4689,2438.5,2438.4,0.41024]
[1730809895889,0.87913,2438.5,2438.4,0.41024]
[1730809896086,0.4689,2438.5,2438.4,0.41024]
[1730809896377,0.87913,2438.5,2438.4,0.41024]
[1730809896787,0.4689,2438.5,2438.4,0.41024]
[1730809896981,4.04774395,2438.9,2438.3,3.58826395]
[1730809896982,0.41018,2438.8,2438.3,3.58826395]
[1730809897177,0.41018,2438.8,2438.7,0.41019]
[1730809897788,0.924,2438.9,2438.4,1.0256]
[1730809898086,0.924,2438.9,2438.8,0.41018]
[1730809901488,9.95523,2439.0,2438.7,0.4346]
[1730809901688,9.95523,2439.0,2438.9,0.41016]
[1730809902088,9.95523,2439.0,2438.9,2.97277395]
[1730809903096,9.95523,2439.0,2438.9,7.07277395]
[1730809905303,8.08842201,2439.0,2438.9,7.07277395]
[1730809905489,7.10952201,2439.0,2438.9,7.07277395]
[1730809906593,6.49415234,2439.0,2438.9,7.07277395]
[1730809907699,4.75216234,2439.0,2438.9,7.07277395]
[1730809908890,4.75216234,2439.0,2438.9,0.41016]
[1730809909094,5.16230234,2439.0,2438.9,0.41016]
[1730809909299,5.18926234,2439.0,2438.9,0.41016]
[1730809909502,4.75216234,2439.0,2438.9,0.41016]
[1730809909706,4.75216234,2439.0,2438.9,2.97277395]
[1730809910201,4.75216234,2439.0,2438.9,0.41016]
[1730809911004,4.75216234,2439.0,2438.9,7.07277395]
[1730809913898,2.92923235,2439.0,2438.9,9.6353879]
[1730809914105,0.4276,2439.6,2439.5,0.41006]
[1730809914407,0.4276,2439.6,2439.5,3.61786]
[1730809914794,0.4276,2439.6,2439.5,4.04896]
[1730809920406,0.4584,2439.9,2439.8,0.41001]
[1730809920805,0.41002,2439.8,2439.6,2.56261395]
[1730809921105,0.41002,2439.8,2439.7,0.41001]
[1730809922912,0.4584,2439.9,2439.5,4.66402]
[1730809923113,0.4584,2439.9,2439.7,0.41001]
[1730809923114,0.41004,2439.8,2439.7,0.41001]
[1730809925908,0.4584,2439.9,2439.5,3.2078]
[1730809926113,0.41006,2439.6,2439.5,0.41004]
[1730809926808,0.41004,2439.7,2439.6,0.41002]
[1730809927014,0.41003,2439.8,2439.7,0.41001]
[1730809927509,4.50843,2439.8,2439.7,0.41001]
[1730809928315,0.41005,2439.6,2439.5,0.41004]
[1730809930919,0.4584,2439.9,2439.8,0.41001]
[1730809931114,0.4584,2439.9,2439.8,2.97262395]
[1730809931318,0.4584,2439.9,2439.8,3.61781]
[1730809932219,0.86839,2439.9,2439.8,3.61781]
[1730809932721,4.96679,2439.9,2439.8,3.2078]
[1730809932921,0.41006,2439.6,2439.5,0.41005]
[1730809933114,1.48342,2439.9,2439.2,1.45964]
[1730809933317,0.4357,2439.5,2439.4,0.41008]
[1730809935817,0.4357,2439.5,2439.4,0.63736485]
[1730809936226,0.4357,2439.5,2439.4,0.41008]
[1730809937323,0.4357,2439.5,2439.4,0.637402]
[1730809937821,0.4357,2439.5,2439.4,0.63741152]
[1730809938026,0.84576,2439.5,2439.4,0.41008]
[1730809938226,0.4357,2439.5,2439.4,0.41008]
[1730809938422,3.20612738,2440.7,2439.2,4.66744]
[1730809938727,0.41005,2439.6,2439.5,3.61784]
[1730809939023,0.41005,2439.6,2439.5,1.0949]
[1730809939330,4.50925,2439.6,2439.5,1.0949]
[1730809939536,45.30925,2439.6,2439.5,1.0949]
[1730809940428,45.92434,2439.6,2439.2,3.2078]
[1730809940726,0.41009,2439.3,2439.2,3.61791]
[1730809941128,4.51009,2439.3,2439.2,3.61791]
[1730809941430,0.41012,2439.2,2439.1,0.41013]
[1730809944517,0.67811,2439.3,2439.2,0.41011]
[1730809944717,0.8695,2439.4,2439.0,1.02536]
[1730809944921,0.4101,2439.3,2439.2,0.41009]
[1730809945131,0.41012,2439.2,2439.1,0.41011]
[1730809945632,0.8695,2439.4,2439.2,0.4101]
[1730809945633,0.4101,2439.3,2439.2,0.4101]
[1730809946023,4.5101,2439.3,2439.2,0.4101]
[1730809947330,0.4101,2439.3,2439.2,0.4101]
[1730809947631,4.5101,2439.3,2439.2,0.4101]
[1730809948030,4.1,2439.3,2439.0,3.2078]
[1730809948329,0.41012,2439.2,2439.1,0.41011]
[1730809953724,0.41011,2439.3,2439.2,0.4101]
[1730809954129,0.8695,2439.4,2439.3,0.41008]
[1730809954130,0.41009,2439.4,2439.3,0.41008]
[1730809954338,4.50929,2439.4,2439.3,0.41008]
[1730809954637,4.0992,2439.4,2439.3,0.41008]
[1730809955031,0.41008,2439.4,2439.3,0.41008]
[1730809959744,0.41004,2439.7,2439.6,0.41004]
[1730809959939,0.41007,2439.5,2439.4,0.41006]
[1730809960240,4.3639,2439.8,2439.3,4.05295395]
[1730809960446,0.41005,2439.6,2439.5,0.41004]
[1730809964145,4.3639,2439.8,2439.5,0.41004]
[1730809964345,4.3639,2439.8,2439.3,1.49033]
[1730809964547,0.41004,2439.7,2439.6,0.41004]
[1730809964961,0.41005,2439.6,2439.5,0.41005]
[1730809965144,0.41005,2439.6,2439.5,0.83385]
[1730809965354,4.3639,2439.8,2439.5,0.4238]
[1730809965558,0.41004,2439.7,2439.6,0.41004]
[1730809966061,0.41003,2439.7,2439.6,0.41004]
[1730809966752,0.41003,2439.7,2439.6,0.85074]
[1730809967347,1.1561,2439.8,2439.6,0.4407]
[1730809967647,1.56612,2439.8,2439.7,0.41002]
[1730809967852,0.41002,2439.7,2439.6,0.85073]
[1730809968053,40.8,2439.9,2439.6,0.4407]
[1730809968259,0.41001,2439.8,2439.7,0.87651]
[1730809968653,4.50841,2439.8,2439.7,0.87651]
[1730809968858,0.41001,2439.8,2439.7,0.87651]
[1730809969053,3.2078,2440.0,2439.7,3.02911395]
[1730809969256,7.93448194,2440.3,2439.7,3.02911395]
[1730809969257,6.41392738,2440.3,2439.7,3.02911395]
[1730809969455,3.2078,2440.3,2440.2,0.40994]